bitfinex/quotes_SOLUSD_20240718
["timestamp","ask_amount","ask_price","bid_price","bid_amount"]
[1721269438276,6.0705,157.96,157.92,6.3322]
[1721269438983,6.0705,157.96,157.93,6.3317]
[1721269439482,6.0705,157.96,157.91,15.8309]
[1721269440279,12.4012,157.96,157.88,60.8347]
[1721269440482,12.4012,157.96,157.89,6.3334]
[1721269440660,6.0705,157.96,157.88,15.8347]
[1721269440980,6.0705,157.96,157.92,6.3322]
[1721269441482,6.0705,157.96,157.92,15.83]
[1721269441673,6.0705,157.96,157.91,6.3323]
[1721269441876,6.0705,157.96,157.9,6.3331]
[1721269442070,6.0705,157.96,157.89,15.8335]
[1721269442382,6.0705,157.96,157.91,6.3327]
[1721269442581,6.0705,157.96,157.89,15.8335]
[1721269442785,6.0705,157.96,157.89,22.1669]
[1721269443563,6.0705,157.96,157.93,6.3318]
[1721269443757,6.0705,157.96,157.94,7.59725981]
[1721269443960,16.01,157.98,157.97,6.3303]
[1721269444261,16.01,157.98,157.94,6.3312]
[1721269444460,16.01,157.98,157.95,7.5967097]
[1721269444763,16.01,157.98,157.96,6.3306]
[1721269444957,16.01,157.98,157.97,1.26594674]
[1721269445277,16.01,157.98,157.95,22.158]
[1721269445781,6.0685,158.02,157.97,6.3303]
[1721269445987,6.0685,158.02,157.98,68.41998333]
[1721269446178,6.0685,158.02,157.99,6.3294]
[1721269446487,6.0685,158.02,157.95,15.8274]
[1721269446787,6.0685,158.02,157.97,6.33]
[1721269447777,6.0685,158.02,157.97,1.26575671]
[1721269447778,12.3968,158.02,157.97,1.26575671]
[1721269447974,12.3968,158.02,157.95,22.1581]
[1721269447975,6.0685,158.02,157.96,1.26590108]
[1721269448165,6.3287,158.01,157.95,15.8274]
[1721269448366,6.0685,158.02,157.95,22.1583]
[1721269448582,12.3968,158.02,157.96,7.59643532]
[1721269448889,6.0685,158.02,157.97,6.3301]
[1721269449075,6.0685,158.02,157.98,7.59555312]
[1721269449276,6.0685,158.02,157.99,1.26575344]
[1721269449876,6.0685,158.02,157.99,7.59515344]
[1721269450599,6.0685,158.02,157.97,15.8252]
[1721269450883,6.0685,158.02,157.98,1.26573819]
[1721269451086,6.0685,158.02,157.99,1.26570054]
[1721269451996,6.0685,158.02,157.98,6.3298]
[1721269452195,6.0685,158.02,157.95,6.331]
[1721269452196,12.3968,158.02,157.95,6.331]
[1721269452372,6.0685,158.02,157.96,51.3305]
[1721269452875,6.3288,158.01,157.94,22.1594]
[1721269453082,12.3968,158.02,157.95,6.331]
[1721269453276,12.3968,158.02,157.97,6.3302]
[1721269453277,6.0685,158.02,157.97,6.3302]
[1721269454102,6.0685,158.02,157.96,67.1567]
[1721269454484,6.0685,158.02,157.98,15.8242]
[1721269454683,6.0685,158.02,157.99,1.26560629]
[1721269455013,6.0685,158.02,157.99,7.59500629]
[1721269455182,16.3169,158.04,158.0,15.8219]
[1721269455383,16.3169,158.04,158.01,1.26545927]
[1721269455597,16.3169,158.04,158.02,1.26549538]
[1721269455799,16.3169,158.04,158.02,7.59369538]
[1721269456387,6.6235,158.07,158.02,7.59369538]
[1721269456604,6.6235,158.07,158.03,6.3278]
[1721269456809,6.6235,158.07,158.04,1.2652751]
[1721269457020,6.6235,158.07,158.05,1.2652751]
[1721269457596,6.6235,158.07,158.02,22.1483]
[1721269457816,6.6235,158.07,158.02,15.8201]
[1721269458310,6.6235,158.07,157.99,15.8233]
[1721269458612,12.9499,158.07,158.0,51.3288]
[1721269458821,6.3267,158.06,158.01,1.26544049]
[1721269459029,6.3274,158.05,157.99,15.8233]
[1721269459215,6.3274,158.05,157.98,6.3298]
[1721269459216,20.0,158.04,157.89,34.65]
[1721269459523,20.0,158.04,157.95,15.8274]
[1721269459822,6.3286,158.02,157.96,6.3306]
[1721269460608,6.3286,158.02,157.95,22.1584]
[1721269461216,6.3299,157.98,157.92,15.8306]
[1721269461393,6.5912,157.97,157.94,6.3312]
[1721269461595,6.5912,157.97,157.95,1.26596579]
[1721269461918,6.5912,157.97,157.92,15.8306]
[1721269462117,6.5912,157.97,157.93,1.26605296]
[1721269462289,6.5912,157.97,157.94,6.3312]
[1721269462488,6.5912,157.97,157.95,1.26601017]
[1721269462693,6.5912,157.97,157.96,6.3307]
[1721269462913,6.5912,157.97,157.96,7.59663808]
[1721269463113,6.5912,157.97,157.96,6.3307]
[1721269463421,6.5912,157.97,157.94,15.8281]
[1721269463715,6.5912,157.97,157.95,45.0]
[1721269463886,6.5912,157.97,157.91,15.8317]
[1721269464287,6.5912,157.97,157.93,6.3318]
[1721269464511,6.5912,157.97,157.94,7.59741464]
[1721269464923,6.4357,158.02,157.94,1.26601464]
[1721269465091,6.4357,158.02,157.98,6.3297]
[1721269465291,6.4357,158.02,157.99,1.26566966]
[1721269465508,6.4357,158.02,157.99,7.59506966]
[1721269466324,6.4357,158.02,158.0,1.26565266]
[1721269467393,6.4357,158.02,157.96,15.826]
[1721269467587,6.4357,158.02,157.96,22.1566]
[1721269468089,6.4357,158.02,157.97,6.3302]
[1721269468289,6.4357,158.02,157.96,15.826]
[1721269468498,6.4357,158.02,157.98,6.3298]
[1721269469239,6.4357,158.02,157.96,22.1563]
[1721269469402,6.4357,158.02,157.97,7.59594222]
[1721269469827,6.4357,158.02,157.97,6.3302]
[1721269470624,12.7641,158.02,157.96,15.826]
[1721269471014,12.7641,158.02,157.96,22.1567]
[1721269471215,6.3287,158.01,157.96,15.826]
[1721269471601,12.7641,158.02,157.96,15.826]
[1721269471807,12.7641,158.02,157.97,1.26592695]
[1721269472015,6.4357,158.02,157.97,7.59612695]
[1721269473431,6.4357,158.02,157.98,1.26579915]
[1721269474722,6.4357,158.02,157.99,1.26580029]
[1721269475134,6.4357,158.02,157.98,1.26572975]
[1721269475315,6.4357,158.02,157.99,1.26572975]
[1721269476330,6.4357,158.02,157.99,6.3291]
[1721269476531,6.4357,158.02,158.0,1.2656298]
[1721269477614,6.4357,158.02,157.98,22.1539]
[1721269477615,6.4357,158.02,157.99,1.26563724]
[1721269477813,6.4357,158.02,157.99,7.59493724]
[1721269479917,6.4357,158.02,157.99,1.26563724]
[1721269480237,6.4357,158.02,157.99,45.0]
[1721269480436,6.4357,158.02,157.95,15.8274]
[1721269480625,6.4357,158.02,157.96,51.3306]
[1721269481024,12.7641,158.02,157.96,45.0]
[1721269481321,12.7641,158.02,157.95,22.1584]
[1721269481322,6.3288,158.01,157.95,22.1584]
[1721269481523,6.4357,158.02,157.95,22.1584]
[1721269482249,12.7641,158.02,157.95,22.1584]
[1721269482742,12.7641,158.02,157.96,6.3306]
[1721269483041,6.4357,158.02,157.97,7.59592742]
[1721269485943,6.4357,158.02,157.99,6.3292]
[1721269486165,6.4357,158.02,158.0,1.26561295]
[1721269486352,6.4357,158.02,158.0,46.26561295]
[1721269486971,6.4357,158.02,158.01,6.3287]
[1721269487280,15.1644,158.04,158.01,6.3287]
[1721269487438,15.1644,158.04,158.02,1.26546895]
[1721269487942,15.1644,158.04,158.02,7.59376895]
[1721269488450,6.2623,158.06,158.05,6.3271]
[1721269488756,21.3367,158.1,158.06,6.3267]
[1721269488957,11.40681295,158.09,158.04,6.3273]
[1721269489268,11.40734698,158.08,158.03,15.819]
[1721269489455,21.3367,158.1,158.04,6.3271]
[1721269489657,11.40669316,158.09,158.04,6.3271]
[1721269489853,21.3367,158.1,158.04,6.3271]
[1721269490072,11.40667687,158.09,158.04,6.3271]
[1721269490372,21.3367,158.1,158.05,6.3269]
[1721269490546,11.40712393,158.09,158.04,6.3274]
[1721269490748,21.3367,158.1,158.04,6.3274]
[1721269490971,11.40710696,158.09,158.04,6.3274]
[1721269491141,21.3367,158.1,158.04,6.3274]
[1721269491339,11.40704519,158.09,158.04,6.3274]
[1721269491671,21.3367,158.1,158.04,6.3274]
[1721269492274,11.40668674,158.09,158.02,6.328]
[1721269492574,11.40668674,158.08,158.02,6.328]
[1721269492772,11.40668674,158.08,158.03,7.5930582]
[1721269492949,27.6618,158.1,158.03,6.3277]
[1721269493144,31.40732404,158.09,158.04,6.3272]
[1721269493360,20.0,158.09,158.04,6.3272]
[1721269493670,26.3258,158.09,158.02,15.8201]
[1721269493871,11.40769668,158.08,158.02,15.8201]
[1721269494068,6.3263,158.07,158.0,6.3289]
[1721269494265,6.326,158.08,158.01,7.59407486]
[1721269494467,6.326,158.08,158.02,7.59353654]
[1721269494781,20.0,158.09,158.03,6.3279]
[1721269495078,11.40797699,158.08,158.02,6.3281]
[1721269495276,6.3259,158.08,158.02,6.3281]
[1721269495754,20.0,158.09,158.03,15.8192]
[1721269495954,11.40790736,158.08,158.03,15.8192]
[1721269496154,20.0,158.09,158.04,6.3272]
[1721269496354,20.0,158.09,158.05,6.327]
[1721269497351,20.0,158.09,158.04,6.3274]
[1721269498265,21.3367,158.1,158.08,6.3257]
[1721269498464,21.3367,158.1,158.07,6.3262]
[1721269498677,21.3367,158.1,158.08,7.59056775]
[1721269498861,6.2424,158.1,158.08,7.59056775]
[1721269499063,0.8099708,158.11,158.09,6.3254]
[1721269499269,0.8099708,158.11,158.1,1.264861]
[1721269499487,0.8099708,158.11,158.09,6.3254]
[1721269499987,0.8099708,158.11,158.1,6.3251]
[1721269500808,0.8099708,158.11,158.1,52.58977276]
[1721269501183,0.8099708,158.11,158.1,51.3251]
[1721269501389,0.8099708,158.11,158.09,22.1384]
[1721269502380,0.8099708,158.11,158.1,7.58985743]
[1721269502782,0.8099708,158.11,158.1,52.58985743]
[1721269505504,0.8099708,158.11,158.1,70.3551]
[1721269505799,0.8099708,158.11,158.1,90.3551]
[1721269506201,0.8099708,158.11,158.1,70.5251]
[1721269506389,0.8099708,158.11,158.1,90.5251]
[1721269506699,0.8099708,158.11,158.1,100.6951]
[1721269507015,6.4498,158.23,158.14,19.03]
[1721269507183,6.4498,158.23,158.15,46.26400222]
[1721269507496,6.4498,158.23,158.21,6.3207]
[1721269507671,6.4498,158.23,158.19,22.1241]
[1721269507874,6.4498,158.23,158.19,15.803]
[1721269508296,0.80961384,158.22,158.15,15.8067]
[1721269508499,6.4498,158.23,158.16,1.26418816]
[1721269508500,0.80961384,158.21,158.16,1.26418816]
[1721269509106,7.13041384,158.21,158.16,1.26418816]
[1721269509297,7.12991384,158.22,158.16,1.26418816]
[1721269509608,7.25941384,158.23,158.17,6.3219]
[1721269509821,6.4498,158.23,158.18,6.3215]
[1721269509977,6.4498,158.23,158.17,15.8049]
[1721269510178,6.4498,158.23,158.19,15.8028]
[1721269510577,6.4498,158.23,158.17,6.3219]
[1721269510802,6.4498,158.23,158.15,22.1295]
[1721269511002,0.80961384,158.22,158.15,15.8068]
[1721269511409,0.80961384,158.22,158.13,6.3235]
[1721269511410,6.3211,158.2,158.13,6.3235]
[1721269511596,0.80961384,158.22,158.08,19.03]
[1721269511784,20.0,158.22,158.15,15.8075]
[1721269512104,20.0,158.22,158.18,6.3216]
[1721269512285,20.0,158.22,158.19,7.5854992]
[1721269512485,20.0,158.22,158.17,22.1268]
[1721269512701,6.4498,158.23,158.18,1.26419012]
[1721269513406,6.4498,158.23,158.19,6.3214]
[1721269513591,6.4498,158.23,158.2,6.3209]
[1721269513795,6.4498,158.23,158.2,15.8023]
[1721269513997,6.4498,158.23,158.21,7.58440076]
[1721269514206,6.4498,158.23,158.2,22.1233]
[1721269514506,6.4498,158.23,158.21,1.26395355]
[1721269514708,6.4498,158.23,158.22,6.3203]
[1721269515589,15.0053,158.25,158.22,6.3203]
[1721269515905,15.0053,158.25,158.23,7.58357019]
[1721269516110,15.0053,158.25,158.24,1.26377019]
[1721269516282,7.2613708,158.27,158.24,1.26377019]
[1721269516886,7.2613708,158.27,158.23,22.1195]
[1721269517328,7.2613708,158.27,158.19,15.8029]
[1721269517486,7.2613708,158.27,158.2,51.3208]
[1721269517688,7.2613708,158.27,158.21,6.3206]
[1721269518198,8.07098464,158.27,158.21,6.3206]
[1721269518397,8.07098464,158.27,158.22,1.26381583]
[1721269519503,0.80961384,158.26,158.22,1.26381583]
[1721269519701,0.80961384,158.26,158.21,6.3206]
[1721269519906,0.80961384,158.26,158.19,15.8029]
[1721269520095,20.80961384,158.26,158.19,15.8029]
[1721269520508,6.3194,158.25,158.19,15.8029]
[1721269520714,7.12911384,158.24,158.18,6.3218]
[1721269521017,0.80961384,158.23,158.18,6.3218]
[1721269521189,0.80961384,158.23,158.11,30.74]
[1721269521394,0.80961384,158.23,158.13,15.8094]
[1721269521395,6.4851,158.2,158.13,15.8094]
[1721269521600,0.80961384,158.19,158.13,22.1329]
[1721269521823,27.13121384,158.19,158.13,15.8094]
[1721269522119,6.3219,158.18,158.12,6.3242]
[1721269522295,0.80961384,158.17,158.13,6.3238]
[1721269522495,20.80961384,158.19,158.15,6.3228]
[1721269522823,20.80961384,158.19,158.1,15.8125]
[1721269523312,20.80961384,158.19,158.07,15.8154]
[1721269523313,45.0,158.18,158.07,15.8154]
[1721269523494,6.3236,158.14,158.08,6.3258]
[1721269523691,0.80961384,158.13,158.08,6.3258]
[1721269523893,0.80961384,158.17,158.12,6.3241]
[1721269524095,0.80961384,158.18,158.13,7.58856266]
[1721269524307,0.80961384,158.18,158.14,7.58795581]
[1721269524715,0.80961384,158.18,158.14,6.3234]
[1721269524897,0.80961384,158.18,158.13,7.5883653]
[1721269525097,20.0,158.19,158.14,1.26456578]
[1721269525306,20.0,158.19,158.08,50.6585]
[1721269525307,20.0,158.19,158.15,22.1307]
[1721269525492,20.0,158.19,158.15,15.8077]
[1721269525899,20.0,158.19,158.16,6.3227]
[1721269526098,7.29471384,158.2,158.15,22.1307]
[1721269526323,7.29471384,158.2,158.15,6.3229]
[1721269526828,7.29471384,158.2,158.12,17.07476802]
[1721269526829,6.4851,158.2,158.16,6.3226]
[1721269527407,6.4851,158.2,158.14,15.8081]
[1721269527616,6.4851,158.2,158.17,22.1277]
[1721269527916,6.4851,158.2,158.18,1.26430337]
[1721269528221,12.8062,158.2,158.08,50.6585]
[1721269528524,6.4851,158.2,158.14,6.3231]
[1721269528818,6.4851,158.2,158.16,6.3226]
[1721269528993,6.4851,158.2,158.14,15.8078]
[1721269528994,0.80961384,158.19,158.14,15.8078]
[1721269529401,7.29471384,158.2,158.14,15.8078]
[1721269529605,6.4851,158.2,158.15,7.58726157]
[1721269529790,6.4851,158.2,158.16,6.3223]
[1721269529990,6.4851,158.2,158.15,1.26436157]
[1721269530215,0.80961384,158.19,158.11,15.8116]
[1721269530517,6.3219,158.18,158.11,22.1362]
[1721269530708,6.3219,158.18,158.11,15.8116]
[1721269530709,0.80961384,158.17,158.11,15.8116]
[1721269530895,27.13211384,158.17,158.11,15.8116]
[1721269531501,6.3228,158.16,158.1,6.3247]
[1721269531826,0.80961384,158.16,158.12,6.3242]
[1721269532335,6.4851,158.2,158.13,1.26467873]
[1721269532523,6.4851,158.2,158.12,22.134]
[1721269532524,0.80961384,158.19,158.12,22.134]
[1721269532821,6.322,158.18,158.12,15.8101]
[1721269532999,0.80961384,158.17,158.12,15.8101]
[1721269533201,0.80961384,158.18,158.12,23.39891132]
[1721269533415,0.80961384,158.18,158.13,6.3238]
[1721269533593,20.80961384,158.19,158.14,1.26456935]
[1721269533915,6.4851,158.2,158.16,6.3226]
[1721269534124,6.4851,158.2,158.15,23.39493466]
[1721269534311,6.4851,158.2,158.17,7.58653466]
[1721269534518,16.3739,158.22,158.18,1.2642282]
[1721269534700,6.5425,158.24,158.15,50.6452]
[1721269534900,6.5425,158.24,158.16,46.26391062]
[1721269535096,6.5425,158.24,158.21,6.3204]
[1721269535409,6.5425,158.24,158.22,1.26387782]
[1721269536006,6.5425,158.24,158.19,22.1243]
[1721269536217,6.5425,158.24,158.2,7.58493313]
[1721269536411,6.5425,158.24,158.21,1.26391892]
[1721269536638,7.1285708,158.27,158.21,1.26391892]
[1721269537143,1.61958464,158.27,158.21,1.26391892]
[1721269537338,0.8099708,158.27,158.21,1.26391892]
[1721269537632,0.8099708,158.27,158.24,15.7986]
[1721269537940,0.8099708,158.27,158.24,23.38165976]
[1721269538114,0.8099708,158.27,158.26,6.3187]
[1721269538314,0.8099708,158.27,158.24,15.7986]
[1721269538520,0.8099708,158.27,158.24,22.1178]
[1721269538833,0.8099708,158.27,158.25,6.319]
[1721269539019,0.8099708,158.27,158.24,22.118]
[1721269539215,0.8099708,158.27,158.24,6.3194]
[1721269539425,0.8099708,158.27,158.23,6.3198]
[1721269539941,7.1282708,158.27,158.2,6.3208]
[1721269540143,1.61958464,158.27,158.21,6.3206]
[1721269540441,1.61958464,158.27,158.22,6.3202]
[1721269540628,6.3188,158.26,158.19,6.3214]
[1721269540821,0.80961384,158.25,158.19,7.5854254]
[1721269541025,1.61958464,158.27,158.22,6.3202]
[1721269541342,6.3187,158.26,158.19,6.3211]
[1721269541638,45.3099708,158.27,158.15,31.6152]
[1721269541639,0.80961384,158.25,158.16,1.26405803]
[1721269541826,0.80961384,158.25,158.15,47.4228]
[1721269541827,6.3196,158.24,158.17,6.3219]
[1721269542024,7.12871384,158.25,158.18,6.3217]
[1721269542351,20.0,158.24,158.18,6.3217]
[1721269542530,0.80961384,158.23,158.17,22.1273]
[1721269542730,0.80961384,158.23,158.17,15.8051]
[1721269542924,0.80961384,158.23,158.19,6.3214]
[1721269543125,0.80961384,158.23,158.17,22.127]
[1721269543126,6.32,158.23,158.17,22.127]
[1721269543327,0.80961384,158.22,158.17,15.8051]
[1721269543830,20.3099708,158.27,158.17,15.8051]
[1721269544032,45.0,158.26,158.16,6.3225]
[1721269544232,20.80961384,158.25,158.17,15.8057]
[1721269544547,6.3195,158.24,158.18,6.3218]
[1721269544749,0.80961384,158.23,158.18,7.5859548]
[1721269544947,0.80961384,158.23,158.18,1.2641548]
[1721269545150,0.80961384,158.23,158.18,6.3215]
[1721269546356,0.80961384,158.23,158.17,22.1279]
[1721269546945,0.80961384,158.23,158.2,15.8024]
[1721269547254,0.80961384,158.23,158.14,31.6167]
[1721269547255,0.80961384,158.24,158.19,6.3214]
[1721269548129,20.80961384,158.25,158.19,6.3214]
[1721269548338,0.80961384,158.26,158.22,6.3202]
[1721269548538,1.11958464,158.27,158.22,6.3202]
[1721269549351,1.11958464,158.27,158.22,15.8001]
[1721269549352,0.3099708,158.27,158.22,15.8001]
[1721269549541,0.3099708,158.27,158.23,1.26371564]
[1721269549741,0.3099708,158.27,158.24,6.3193]
[1721269550268,0.3099708,158.27,158.26,6.3187]
[1721269550454,0.3099708,158.27,158.24,22.1172]
[1721269551666,0.3099708,158.27,158.24,15.7981]
[1721269552350,0.3099708,158.27,158.24,23.38122778]
[1721269552545,0.3099708,158.27,158.24,15.7981]
[1721269554068,0.3099708,158.27,158.24,23.38112771]
[1721269554242,0.3099708,158.27,158.24,22.1174]
[1721269555670,0.3099708,158.27,158.21,15.8013]
[1721269555851,0.3099708,158.27,158.22,1.26372764]
[1721269556042,0.3099708,158.27,158.23,15.7991]
[1721269556244,0.3099708,158.27,158.24,1.26372597]
[1721269556642,0.3099708,158.27,158.23,15.7991]
[1721269556842,0.3099708,158.27,158.25,6.319]
[1721269557073,0.3099708,158.27,158.26,6.3187]
[1721269557944,0.3099708,158.27,158.25,6.319]
[1721269558165,0.3099708,158.27,158.26,6.3187]
[1721269559882,0.3099708,158.27,158.26,7.58225294]
[1721269560380,0.3099708,158.27,158.25,22.1159]
[1721269560752,0.3099708,158.27,158.22,31.6007]
[1721269560753,0.3099708,158.27,158.23,6.3196]
[1721269560955,0.3099708,158.27,158.15,1.6172]
[1721269561169,6.6283708,158.27,158.19,15.8036]
[1721269561468,0.3099708,158.27,158.21,15.801]
[1721269561674,0.3099708,158.27,158.23,6.3198]
[1721269561875,0.3099708,158.27,158.21,22.1214]
[1721269562174,1.11958464,158.27,158.21,22.1214]
[1721269562376,0.61958464,158.27,158.21,22.1214]
[1721269563078,6.3187,158.26,158.19,6.3211]
[1721269563381,0.61958464,158.25,158.19,6.3211]
[1721269563585,6.93898464,158.25,158.18,22.1263]
[1721269563759,6.93828464,158.27,158.19,1.26410218]
[1721269563968,6.93828464,158.26,158.2,6.321]
[1721269564373,0.61958464,158.26,158.21,1.26399404]
[1721269564576,0.61958464,158.26,158.23,6.3198]
[1721269564775,0.61958464,158.26,158.22,6.3202]
[1721269565081,0.61958464,158.27,158.23,7.5837385]
[1721269565858,6.70338464,158.28,158.24,7.58324296]
[1721269566180,6.0838,158.28,158.25,6.319]
[1721269566375,6.0838,158.28,158.26,1.26360793]
[1721269566575,6.0838,158.28,158.25,15.7972]
[1721269567266,6.0838,158.28,158.22,15.8003]
[1721269567479,6.0838,158.28,158.25,6.3191]
[1721269567781,6.0838,158.28,158.26,1.26354993]
[1721269567981,6.0838,158.28,158.25,6.3191]
[1721269568181,6.0838,158.28,158.26,6.3185]
[1721269568690,22.4483,158.35,158.29,6.3173]
[1721269568863,0.61958464,158.34,158.29,6.3173]
[1721269569271,0.61958464,158.34,158.3,7.58034036]
[1721269569993,22.4483,158.35,158.32,6.3162]
[1721269570288,22.4483,158.35,158.27,31.5913]
[1721269570289,22.4483,158.35,158.33,1.26314617]
[1721269570490,6.5861,158.35,158.34,22.1043]
[1721269571058,6.5861,158.35,158.34,15.7888]
[1721269571259,6.5861,158.35,158.32,6.3162]
[1721269571988,0.61958464,158.39,158.33,17.0527822]
[1721269572166,0.61958464,158.39,158.34,1.26282419]
[1721269572374,0.61958464,158.39,158.33,15.7898]
[1721269572590,0.61958464,158.39,158.33,22.1053]
[1721269572892,0.61958464,158.39,158.34,7.57824705]
[1721269573183,22.65288464,158.4,158.35,6.3149]
[1721269573391,0.61958464,158.39,158.33,15.7898]
[1721269573588,22.65288464,158.4,158.36,6.3147]
[1721269573997,22.0333,158.4,158.36,6.3147]
[1721269574173,22.0333,158.4,158.34,1.2628312]
[1721269574370,22.0333,158.4,158.36,6.3143]
[1721269574686,22.0333,158.4,158.37,6.3143]
[1721269574995,0.8099708,158.42,158.4,6.3129]
[1721269575369,0.8099708,158.42,158.4,6.3131]
[1721269575780,0.8099708,158.42,158.41,7.57514261]
[1721269576074,0.8099708,158.42,158.41,6.3127]
[1721269576274,0.8099708,158.42,158.4,6.3131]
[1721269576474,0.8099708,158.42,158.4,7.57550627]
[1721269576874,1.42955544,158.42,158.34,15.788]
[1721269577606,0.8099708,158.42,158.38,6.3138]
[1721269577969,1.42955544,158.42,158.37,15.7856]
[1721269578195,0.8099708,158.42,158.37,15.7856]
[1721269578380,0.8099708,158.42,158.4,6.313]
[1721269578775,0.8099708,158.42,158.39,15.7829]
[1721269578976,0.8099708,158.42,158.4,1.26239539]
[1721269579186,0.8099708,158.42,158.39,15.7829]
[1721269579499,0.8099708,158.42,158.41,6.3127]
[1721269580103,0.8099708,158.42,158.4,7.57550605]
[1721269580602,0.8099708,158.42,158.4,6.3131]
[1721269580902,0.8099708,158.42,158.41,7.57510616]
[1721269582201,0.8099708,158.42,158.41,6.3127]
[1721269583579,0.8099708,158.42,158.4,1.26216294]
[1721269583785,0.8099708,158.42,158.41,6.3127]
[1721269585390,0.8099708,158.42,158.41,51.3127]
[1721269585583,0.8099708,158.42,158.41,6.3127]
[1721269586304,0.8099708,158.42,158.41,51.3127]
[1721269586508,0.8099708,158.42,158.41,52.57466459]
[1721269586812,0.8099708,158.42,158.41,51.3127]
[1721269586976,0.8099708,158.42,158.41,52.57461682]
[1721269587711,0.8099708,158.42,158.41,6.3127]
[1721269589807,0.8099708,158.42,158.41,51.3127]
[1721269590008,0.8099708,158.42,158.41,71.60473968]
[1721269590309,0.8099708,158.42,158.41,90.3427]
[1721269590495,0.8099708,158.42,158.41,121.0127]
[1721269591417,0.8099708,158.42,158.41,101.9827]
[1721269591707,0.8099708,158.42,158.41,121.0127]
[1721269592427,0.8099708,158.42,158.41,101.9827]
[1721269592986,0.8099708,158.42,158.41,122.27461111]
[1721269593990,1.42955544,158.58,158.45,19.03]
[1721269594196,0.61958464,158.57,158.52,6.3083]
[1721269594699,0.61958464,158.57,158.51,6.3087]
[1721269594901,0.61958464,158.57,158.52,7.5697144]
[1721269595089,0.61958464,158.57,158.54,6.3074]
[1721269595387,0.8099708,158.58,158.55,6.307]
[1721269595597,0.8099708,158.58,158.54,6.3075]
[1721269595887,0.8099708,158.58,158.53,15.7698]
[1721269596089,0.8099708,158.58,158.55,6.307]
[1721269596299,1.42955544,158.58,158.53,15.7698]
[1721269596609,0.8099708,158.58,158.55,15.7669]
[1721269596802,0.8099708,158.58,158.56,1.26111745]
[1721269596991,0.8099708,158.58,158.57,6.3063]
[1721269597192,0.8099708,158.58,158.55,22.0736]
[1721269597392,0.8099708,158.58,158.56,6.3066]
[1721269597711,0.8099708,158.58,158.57,6.3063]
[1721269598988,0.8099708,158.58,158.57,7.56719757]
[1721269599292,0.8099708,158.58,158.57,6.3063]
[1721269599613,0.8099708,158.58,158.57,7.56717862]
[1721269599798,0.8099708,158.58,158.57,52.56717862]
[1721269600200,0.8099708,158.58,158.57,71.59717862]
[1721269600707,0.8099708,158.58,158.57,7.56717862]
[1721269600910,0.8099708,158.58,158.57,6.3063]
[1721269601494,0.8099708,158.58,158.55,15.7669]
[1721269601696,28.9899,158.57,158.51,6.3086]
[1721269601896,0.61958464,158.56,158.44,56.4731]
[1721269602093,22.6836,158.57,158.49,15.7736]
[1721269602312,0.61958464,158.56,158.49,15.7736]
[1721269602528,6.3074,158.55,158.49,15.7736]
[1721269602811,22.6836,158.57,158.54,15.7679]
[1721269603020,6.92668464,158.56,158.49,6.3092]
[1721269603198,22.6836,158.57,158.51,6.3083]
[1721269603523,22.6836,158.57,158.55,6.307]
[1721269603812,22.6836,158.57,158.54,15.7681]
[1721269604018,22.6836,158.57,158.54,17.02942169]
[1721269604220,22.6836,158.57,158.54,15.7681]
[1721269604511,22.6836,158.57,158.55,6.3071]
[1721269604891,22.6836,158.57,158.56,6.3067]
[1721269605720,0.8099708,158.58,158.57,6.3063]
[1721269605897,0.8099708,158.58,158.57,7.56734885]
[1721269606109,0.8099708,158.58,158.57,6.3063]
[1721269609502,0.8099708,158.58,158.57,51.3063]
[1721269609897,0.8099708,158.58,158.57,7.56708525]
[1721269610096,0.8099708,158.58,158.57,6.3063]
[1721269610311,0.8099708,158.58,158.57,7.56691943]
[1721269610820,0.8099708,158.58,158.57,7.56703817]
[1721269611024,0.8099708,158.58,158.57,6.3063]
[1721269613119,0.8099708,158.58,158.57,7.56725273]
[1721269613904,0.8099708,158.58,158.57,52.56725273]
[1721269614926,0.8099708,158.58,158.57,6.3063]